[Event "*** SCC Grand Prix: Titled Tuesday Blitz"]
[Site "Chess.com"]
[Date "2020.06.23"]
[Round "6"]
[White "AndreyNeves"]
[Black "renehp"]
[Result "0-1"]
[WhiteElo "2211"]
[BlackElo "2402"]
[TimeControl "180+1"]
[EndTime "11:06:07 PDT"]
[Termination "renehp won by resignation"]

1. d4 {[%clk 0:03:00.9]} 1... d5 {[%clk 0:02:58.6]} 2. c4 {[%clk 0:03:00.7]}
2... c6 {[%clk 0:02:58.3]} 3. Nf3 {[%clk 0:03:00.5]} 3... Nf6 {[%clk 0:02:58.1]}
4. e3 {[%clk 0:02:59.1]} 4... Bg4 {[%clk 0:02:56.9]} 5. Qb3 {[%clk 0:02:52.5]}
5... Qc7 {[%clk 0:02:44.5]} 6. Ne5 {[%clk 0:02:51.8]} 6... e6 {[%clk 0:02:43.4]}
7. Nxg4 {[%clk 0:02:46.4]} 7... Nxg4 {[%clk 0:02:44.3]} 8. Be2 {[%clk
0:02:44.8]} 8... Nf6 {[%clk 0:02:41.3]} 9. Nc3 {[%clk 0:02:44.2]} 9... Be7
{[%clk 0:02:40.2]} 10. Bf3 {[%clk 0:02:40.6]} 10... O-O {[%clk 0:02:38]} 11. O-O
{[%clk 0:02:40]} 11... Nbd7 {[%clk 0:02:37.1]} 12. e4 {[%clk 0:02:38.9]} 12...
dxe4 {[%clk 0:02:33.8]} 13. Nxe4 {[%clk 0:02:38.8]} 13... e5 {[%clk 0:02:27.9]}
14. Be3 {[%clk 0:02:17]} 14... exd4 {[%clk 0:02:11]} 15. Bxd4 {[%clk 0:02:16.7]}
15... Nxe4 {[%clk 0:02:10.7]} 16. Bxe4 {[%clk 0:02:11.4]} 16... Nf6 {[%clk
0:02:10.7]} 17. Bf3 {[%clk 0:02:09.1]} 17... Rfd8 {[%clk 0:02:10.2]} 18. Qc3
{[%clk 0:02:05.4]} 18... Qf4 {[%clk 0:02:05.2]} 19. Rad1 {[%clk 0:02:01.8]}
19... Qf5 {[%clk 0:01:41.9]} 20. Rfe1 {[%clk 0:01:52.6]} 20... Re8 {[%clk
0:01:35.9]} 21. Re5 {[%clk 0:01:46.1]} 21... Qg6 {[%clk 0:01:35.5]} 22. Rde1
{[%clk 0:01:40.5]} 22... Bd6 {[%clk 0:01:28.5]} 23. Rxe8+ {[%clk 0:01:39.3]}
23... Rxe8 {[%clk 0:01:29.4]} 24. Rxe8+ {[%clk 0:01:34.9]} 24... Nxe8 {[%clk
0:01:30.3]} 25. g3 {[%clk 0:01:34.2]} 25... Qb1+ {[%clk 0:01:24.8]} 26. Kg2
{[%clk 0:01:32.5]} 26... Qxa2 {[%clk 0:01:25.1]} 27. Bg4 {[%clk 0:01:06.6]}
27... Qb1 {[%clk 0:01:15.2]} 28. Bd7 {[%clk 0:00:54.4]} 28... Qe4+ {[%clk
0:01:10.7]} 29. f3 {[%clk 0:00:52]} 29... Qe2+ {[%clk 0:01:10.2]} 30. Kh3 {[%clk
0:00:52.2]} 30... h5 {[%clk 0:00:45]} 31. Bxa7 {[%clk 0:00:47.8]} 31... Qf1+
{[%clk 0:00:43.6]} 32. Kh4 {[%clk 0:00:40.6]} 32... Be7+ {[%clk 0:00:42.5]} 33.
Kxh5 {[%clk 0:00:33.4]} 33... Nf6+ {[%clk 0:00:40.1]} 34. Kg5 {[%clk 0:00:26.2]}
34... Nd5+ {[%clk 0:00:28.7]} 0-1

[Event "*** SCC Grand Prix: Titled Tuesday Blitz"]
[Site "Chess.com"]
[Date "2020.06.23"]
[Round "6"]
[White "Zurability"]
[Black "Msb2"]
[Result "0-1"]
[WhiteElo "2679"]
[BlackElo "2847"]
[TimeControl "180+1"]
[EndTime "11:06:10 PDT"]
[Termination "Msb2 won on time"]

1. Nf3 {[%clk 0:03:00.9]} 1... d5 {[%clk 0:03:00.1]} 2. g3 {[%clk 0:03:01]} 2...
Nc6 {[%clk 0:03:00.5]} 3. d4 {[%clk 0:02:57.2]} 3... Bf5 {[%clk 0:03:00.6]} 4.
Bg2 {[%clk 0:02:56.5]} 4... Nb4 {[%clk 0:03:00.7]} 5. Na3 {[%clk 0:02:56.2]}
5... e6 {[%clk 0:03:01.2]} 6. O-O {[%clk 0:02:55]} 6... Be7 {[%clk 0:03:01.6]}
7. c3 {[%clk 0:02:47.7]} 7... Nc6 {[%clk 0:03:01.1]} 8. c4 {[%clk 0:02:31]} 8...
Nb4 {[%clk 0:03:00.4]} 9. Bd2 {[%clk 0:02:23.2]} 9... a5 {[%clk 0:02:58]} 10.
Qb3 {[%clk 0:02:10.3]} 10... c6 {[%clk 0:02:58]} 11. Ne5 {[%clk 0:01:58.1]}
11... Nf6 {[%clk 0:02:08.7]} 12. c5 {[%clk 0:01:52.1]} 12... O-O {[%clk
0:01:52.4]} 13. Bxb4 {[%clk 0:01:48.3]} 13... axb4 {[%clk 0:01:53.3]} 14. Qxb4
{[%clk 0:01:48.9]} 14... Qc7 {[%clk 0:01:51.4]} 15. Qc3 {[%clk 0:01:35.1]} 15...
Ra4 {[%clk 0:01:45.6]} 16. Nb1 {[%clk 0:01:21.4]} 16... Rfa8 {[%clk 0:01:45.2]}
17. a3 {[%clk 0:01:17.8]} 17... Ne4 {[%clk 0:01:45.4]} 18. Bxe4 {[%clk
0:01:16.6]} 18... Bxe4 {[%clk 0:01:46.3]} 19. Nd2 {[%clk 0:01:14.7]} 19... Bf5
{[%clk 0:01:46.3]} 20. e3 {[%clk 0:01:08.3]} 20... f6 {[%clk 0:01:45.3]} 21. Nd3
{[%clk 0:01:06.9]} 21... Bg6 {[%clk 0:01:43.5]} 22. f4 {[%clk 0:00:58.8]} 22...
b6 {[%clk 0:01:14.9]} 23. cxb6 {[%clk 0:00:56.2]} 23... Qxb6 {[%clk 0:01:15.8]}
24. Rab1 {[%clk 0:00:19.9]} 24... Qa6 {[%clk 0:01:06.3]} 25. f5 {[%clk
0:00:15.2]} 25... Bxf5 {[%clk 0:01:05.5]} 26. Rxf5 {[%clk 0:00:15.1]} 26... exf5
{[%clk 0:01:06.4]} 27. Rf1 {[%clk 0:00:13.7]} 27... g6 {[%clk 0:01:05.7]} 28.
Nb3 {[%clk 0:00:14.1]} 28... Qb5 {[%clk 0:01:03]} 29. Nbc5 {[%clk 0:00:12.4]}
29... Bxc5 {[%clk 0:01:01.7]} 30. Nxc5 {[%clk 0:00:13.3]} 30... Rc4 {[%clk
0:00:57.7]} 31. Qd2 {[%clk 0:00:13.8]} 31... Re8 {[%clk 0:00:47.2]} 32. Kf2
{[%clk 0:00:04.2]} 32... Kg7 {[%clk 0:00:35.8]} 33. b3 {[%clk 0:00:04.6]} 33...
Rxc5 {[%clk 0:00:35.4]} 34. dxc5 {[%clk 0:00:05.5]} 34... Qxb3 {[%clk 0:00:36]}
35. Ra1 {[%clk 0:00:04.4]} 35... Re4 {[%clk 0:00:28.8]} 36. Ra2 {[%clk
0:00:02.3]} 36... g5 {[%clk 0:00:26.9]} 37. Rb2 {[%clk 0:00:02.7]} 37... Qxa3
{[%clk 0:00:26.1]} 38. Rb7+ {[%clk 0:00:03]} 38... Kg6 {[%clk 0:00:26.7]} 0-1

[Event "*** SCC Grand Prix: Titled Tuesday Blitz"]
[Site "Chess.com"]
[Date "2020.06.23"]
[Round "6"]
[White "Igor_Lysyj"]
[Black "Azerichess"]
[Result "1-0"]
[WhiteElo "2774"]
[BlackElo "3018"]
[TimeControl "180+1"]
[EndTime "11:06:11 PDT"]
[Termination "Igor_Lysyj won on time"]

1. d4 {[%clk 0:03:00]} 1... d5 {[%clk 0:03:00.3]} 2. c4 {[%clk 0:02:59.6]} 2...
c5 {[%clk 0:03:00.8]} 3. cxd5 {[%clk 0:02:57.2]} 3... Qxd5 {[%clk 0:03:01.7]} 4.
e3 {[%clk 0:02:55.3]} 4... Nf6 {[%clk 0:02:56]} 5. Nc3 {[%clk 0:02:54.2]} 5...
Qd8 {[%clk 0:02:56.5]} 6. Nf3 {[%clk 0:02:53.8]} 6... e6 {[%clk 0:02:56.8]} 7.
Bc4 {[%clk 0:02:53.2]} 7... a6 {[%clk 0:02:56.1]} 8. O-O {[%clk 0:02:52.4]} 8...
b5 {[%clk 0:02:54.1]} 9. Be2 {[%clk 0:02:51.8]} 9... Bb7 {[%clk 0:02:52.1]} 10.
dxc5 {[%clk 0:02:50.6]} 10... Bxc5 {[%clk 0:02:50.7]} 11. Qxd8+ {[%clk 0:02:49]}
11... Kxd8 {[%clk 0:02:51.6]} 12. Nd2 {[%clk 0:02:48.4]} 12... Ke7 {[%clk
0:02:49.2]} 13. Nb3 {[%clk 0:02:47.4]} 13... Bb6 {[%clk 0:02:45.7]} 14. a4
{[%clk 0:02:46.4]} 14... b4 {[%clk 0:02:45.5]} 15. a5 {[%clk 0:02:46.3]} 15...
Ba7 {[%clk 0:02:25.5]} 16. Na2 {[%clk 0:02:42.8]} 16... Bd5 {[%clk 0:02:24.9]}
17. Nd2 {[%clk 0:02:25.8]} 17... Nc6 {[%clk 0:02:19.7]} 18. Bxa6 {[%clk
0:02:20.3]} 18... Rhb8 {[%clk 0:01:43.8]} 19. Be2 {[%clk 0:02:15.5]} 19... g5
{[%clk 0:01:22.4]} 20. a6 {[%clk 0:02:13.7]} 20... g4 {[%clk 0:01:22.4]} 21. b3
{[%clk 0:01:50]} 21... h5 {[%clk 0:01:16.9]} 22. Bb2 {[%clk 0:01:48.2]} 22... h4
{[%clk 0:01:14.7]} 23. Rfc1 {[%clk 0:01:36.3]} 23... g3 {[%clk 0:01:07.4]} 24.
Bf3 {[%clk 0:01:20.9]} 24... Rc8 {[%clk 0:00:50.1]} 25. e4 {[%clk 0:01:01.7]}
25... gxf2+ {[%clk 0:00:26]} 26. Kf1 {[%clk 0:01:00.6]} 26... h3 {[%clk
0:00:18]} 27. Bxf6+ {[%clk 0:00:52.9]} 27... Kxf6 {[%clk 0:00:17.4]} 28. exd5
{[%clk 0:00:52.9]} 28... Ne5 {[%clk 0:00:11.9]} 29. dxe6 {[%clk 0:00:51]} 29...
Nxf3 {[%clk 0:00:05.9]} 30. gxf3 {[%clk 0:00:36.8]} 30... Kxe6 {[%clk
0:00:03.4]} 31. Rxc8 {[%clk 0:00:32.8]} 31... Rxc8 {[%clk 0:00:02.9]} 32. Nxb4
{[%clk 0:00:29.4]} 32... Rg8 {[%clk 0:00:02.9]} 33. Ke2 {[%clk 0:00:28.2]} 33...
Kf5 {[%clk 0:00:02.6]} 34. Nc6 {[%clk 0:00:27.1]} 1-0

[Event "*** SCC Grand Prix: Titled Tuesday Blitz"]
[Site "Chess.com"]
[Date "2020.06.23"]
[Round "6"]
[White "SilviusTiberius"]
[Black "dennisodessa"]
[Result "0-1"]
[WhiteElo "2402"]
[BlackElo "2269"]
[TimeControl "180+1"]
[EndTime "11:06:11 PDT"]
[Termination "dennisodessa won by resignation"]

1. e4 {[%clk 0:03:00.9]} 1... e6 {[%clk 0:02:59.8]} 2. Qe2 {[%clk 0:02:52]} 2...
c5 {[%clk 0:02:59]} 3. g3 {[%clk 0:02:51.8]} 3... Nc6 {[%clk 0:02:59.9]} 4. c3
{[%clk 0:02:51.6]} 4... g6 {[%clk 0:03:00.8]} 5. Bg2 {[%clk 0:02:51.7]} 5... Bg7
{[%clk 0:03:01.3]} 6. h4 {[%clk 0:02:51.3]} 6... Nge7 {[%clk 0:03:02.2]} 7. h5
{[%clk 0:02:51.4]} 7... d5 {[%clk 0:02:56.4]} 8. h6 {[%clk 0:02:51.2]} 8... Bf6
{[%clk 0:02:55.7]} 9. d3 {[%clk 0:02:47.2]} 9... O-O {[%clk 0:02:51.6]} 10. f4
{[%clk 0:02:47]} 10... b5 {[%clk 0:02:51.4]} 11. e5 {[%clk 0:02:47.1]} 11... Bh8
{[%clk 0:02:51.6]} 12. a4 {[%clk 0:02:38.4]} 12... bxa4 {[%clk 0:02:50.4]} 13.
Rxa4 {[%clk 0:02:37.1]} 13... f6 {[%clk 0:02:50.6]} 14. Nf3 {[%clk 0:02:34.6]}
14... fxe5 {[%clk 0:02:50.3]} 15. Nxe5 {[%clk 0:02:34.5]} 15... Nxe5 {[%clk
0:02:50.3]} 16. fxe5 {[%clk 0:02:35]} 16... Nf5 {[%clk 0:02:48.7]} 17. Bf4
{[%clk 0:02:02.1]} 17... Qb6 {[%clk 0:02:26.2]} 18. O-O {[%clk 0:01:54.9]} 18...
Rb8 {[%clk 0:02:20.6]} 19. Nd2 {[%clk 0:01:31.8]} 19... Qxb2 {[%clk 0:01:54.7]}
20. Rxa7 {[%clk 0:01:30.1]} 20... Qxc3 {[%clk 0:01:49.9]} 21. Qg4 {[%clk
0:00:53]} 21... Rb7 {[%clk 0:01:13.2]} 22. Ra8 {[%clk 0:00:35.8]} 22... Bxe5
{[%clk 0:00:57.8]} 23. Nf3 {[%clk 0:00:29.4]} 23... Bf6 {[%clk 0:00:48.3]} 24.
Ng5 {[%clk 0:00:25.4]} 24... e5 {[%clk 0:00:42.7]} 25. Bxd5+ {[%clk 0:00:22.9]}
25... Kh8 {[%clk 0:00:40.9]} 26. Ne4 {[%clk 0:00:20.3]} 26... Qd4+ {[%clk
0:00:31.5]} 27. Rf2 {[%clk 0:00:17.2]} 27... Rb1+ {[%clk 0:00:29.8]} 28. Kg2
{[%clk 0:00:17.2]} 28... exf4 {[%clk 0:00:22.5]} 29. Nxf6 {[%clk 0:00:15.2]}
29... fxg3 {[%clk 0:00:16.9]} 30. Rxc8 {[%clk 0:00:13.9]} 30... Qxf2+ {[%clk
0:00:15.6]} 0-1

[Event "*** SCC Grand Prix: Titled Tuesday Blitz"]
[Site "Chess.com"]
[Date "2020.06.23"]
[Round "6"]
[White "metalbattler"]
[Black "Kislov_Oleg"]
[Result "0-1"]
[WhiteElo "2118"]
[BlackElo "2382"]
[TimeControl "180+1"]
[EndTime "11:06:11 PDT"]
[Termination "Kislov_Oleg won on time"]

1. d4 {[%clk 0:03:00.9]} 1... Nf6 {[%clk 0:02:59.5]} 2. Bf4 {[%clk 0:03:00.4]}
2... d5 {[%clk 0:02:58.9]} 3. e3 {[%clk 0:03:00.5]} 3... e6 {[%clk 0:02:59.1]}
4. c3 {[%clk 0:02:59.2]} 4... c5 {[%clk 0:02:58.9]} 5. Nd2 {[%clk 0:02:59.3]}
5... Nc6 {[%clk 0:02:59.1]} 6. Ngf3 {[%clk 0:02:58.8]} 6... Bd6 {[%clk
0:02:59.5]} 7. Bg3 {[%clk 0:02:58.5]} 7... O-O {[%clk 0:02:52.4]} 8. Bd3 {[%clk
0:02:58.4]} 8... b6 {[%clk 0:02:49.3]} 9. Ne5 {[%clk 0:02:56.8]} 9... Bb7 {[%clk
0:02:42]} 10. f4 {[%clk 0:02:56]} 10... g6 {[%clk 0:02:27.9]} 11. Bh4 {[%clk
0:02:47.6]} 11... Be7 {[%clk 0:02:27]} 12. Ndf3 {[%clk 0:02:45.8]} 12... Ne4
{[%clk 0:02:24.3]} 13. Bxe7 {[%clk 0:02:43.3]} 13... Qxe7 {[%clk 0:02:23.4]} 14.
O-O {[%clk 0:02:42.9]} 14... f6 {[%clk 0:02:21.3]} 15. Nxc6 {[%clk 0:02:40.6]}
15... Bxc6 {[%clk 0:02:22.2]} 16. Nd2 {[%clk 0:02:35.1]} 16... Nxd2 {[%clk
0:02:05.1]} 17. Qxd2 {[%clk 0:02:35]} 17... e5 {[%clk 0:02:03.9]} 18. fxe5
{[%clk 0:02:34]} 18... fxe5 {[%clk 0:02:02.6]} 19. Rxf8+ {[%clk 0:02:25.5]}
19... Rxf8 {[%clk 0:02:01.8]} 20. Rf1 {[%clk 0:02:23]} 20... Rxf1+ {[%clk
0:01:47.4]} 21. Kxf1 {[%clk 0:02:17.3]} 21... Qg5 {[%clk 0:01:46.1]} 22. Qe2
{[%clk 0:00:37.2]} 22... Kg7 {[%clk 0:01:22.2]} 23. h3 {[%clk 0:00:30.7]} 23...
h5 {[%clk 0:01:21.6]} 24. Kg1 {[%clk 0:00:28.2]} 24... h4 {[%clk 0:01:21.3]} 25.
Qf2 {[%clk 0:00:23.9]} 25... Bd7 {[%clk 0:01:14.2]} 26. Kh2 {[%clk 0:00:22]}
26... e4 {[%clk 0:00:47.2]} 27. Be2 {[%clk 0:00:21.2]} 27... Bf5 {[%clk
0:00:46.2]} 28. b4 {[%clk 0:00:19]} 28... Qe7 {[%clk 0:00:34.7]} 29. a3 {[%clk
0:00:14.7]} 29... cxb4 {[%clk 0:00:33.7]} 30. cxb4 {[%clk 0:00:12.8]} 30... a5
{[%clk 0:00:34.2]} 31. bxa5 {[%clk 0:00:11.3]} 31... bxa5 {[%clk 0:00:35.1]} 32.
Qf4 {[%clk 0:00:10.8]} 32... Qxa3 {[%clk 0:00:24.9]} 33. Qe5+ {[%clk 0:00:07.3]}
33... Kh7 {[%clk 0:00:20.5]} 0-1

[Event "*** SCC Grand Prix: Titled Tuesday Blitz"]
[Site "Chess.com"]
[Date "2020.06.23"]
[Round "6"]
[White "sergeikim"]
[Black "ferdipy"]
[Result "0-1"]
[WhiteElo "2510"]
[BlackElo "2378"]
[TimeControl "180+1"]
[EndTime "11:06:16 PDT"]
[Termination "ferdipy won on time"]

1. d4 {[%clk 0:03:00.9]} 1... Nf6 {[%clk 0:02:58.8]} 2. c4 {[%clk 0:03:00.7]}
2... e6 {[%clk 0:02:58.4]} 3. Nc3 {[%clk 0:03:00.7]} 3... Bb4 {[%clk 0:02:58.8]}
4. Qc2 {[%clk 0:03:00.7]} 4... O-O {[%clk 0:02:58.1]} 5. a3 {[%clk 0:03:00.7]}
5... Bxc3+ {[%clk 0:02:57.6]} 6. Qxc3 {[%clk 0:03:01.6]} 6... c5 {[%clk
0:02:54.5]} 7. dxc5 {[%clk 0:03:00.2]} 7... Qc7 {[%clk 0:02:53.1]} 8. b4 {[%clk
0:02:54.5]} 8... a5 {[%clk 0:02:53.1]} 9. Bb2 {[%clk 0:02:53.3]} 9... b6 {[%clk
0:02:50.3]} 10. cxb6 {[%clk 0:02:51.5]} 10... Qxb6 {[%clk 0:02:51.2]} 11. b5
{[%clk 0:02:37.1]} 11... d6 {[%clk 0:02:49.7]} 12. Nf3 {[%clk 0:02:36.6]} 12...
Bb7 {[%clk 0:02:47.4]} 13. e3 {[%clk 0:02:36.5]} 13... Nbd7 {[%clk 0:02:47.3]}
14. Be2 {[%clk 0:02:34.6]} 14... Rac8 {[%clk 0:02:45]} 15. Qd4 {[%clk
0:02:31.8]} 15... Nc5 {[%clk 0:02:44.6]} 16. O-O {[%clk 0:02:22.1]} 16... Rfd8
{[%clk 0:02:42.6]} 17. Qh4 {[%clk 0:02:14.8]} 17... e5 {[%clk 0:02:28.9]} 18. a4
{[%clk 0:01:54.8]} 18... h6 {[%clk 0:02:23.9]} 19. Rfd1 {[%clk 0:01:49.6]} 19...
Be4 {[%clk 0:01:52.8]} 20. Nd2 {[%clk 0:01:38.9]} 20... Bc2 {[%clk 0:01:49.7]}
21. Rdc1 {[%clk 0:01:34.2]} 21... Bxa4 {[%clk 0:01:47.8]} 22. Bc3 {[%clk
0:01:22.5]} 22... Ra8 {[%clk 0:01:35]} 23. Ra3 {[%clk 0:01:19.9]} 23... Rdc8
{[%clk 0:01:06.6]} 24. Rca1 {[%clk 0:01:18.7]} 24... Bc2 {[%clk 0:01:05.8]} 25.
Bxa5 {[%clk 0:01:14]} 25... Qb7 {[%clk 0:01:04.3]} 26. Bb4 {[%clk 0:01:03.8]}
26... Rxa3 {[%clk 0:01:02.1]} 27. Rxa3 {[%clk 0:00:57.2]} 27... Ra8 {[%clk
0:01:02.3]} 28. Bxc5 {[%clk 0:00:43.1]} 28... dxc5 {[%clk 0:00:57.9]} 29. Rxa8+
{[%clk 0:00:39.6]} 29... Qxa8 {[%clk 0:00:58.8]} 30. h3 {[%clk 0:00:35.8]} 30...
Qa1+ {[%clk 0:00:55.9]} 31. Nf1 {[%clk 0:00:25.4]} 31... Qe1 {[%clk 0:00:51.2]}
32. Qg3 {[%clk 0:00:14.1]} 32... Ne4 {[%clk 0:00:49.6]} 33. Qf3 {[%clk
0:00:09.5]} 33... Nd2 {[%clk 0:00:45.6]} 34. Qa8+ {[%clk 0:00:07.7]} 34... Kh7
{[%clk 0:00:40.2]} 35. Qd5 {[%clk 0:00:05.1]} 35... Ne4 {[%clk 0:00:34.6]} 36.
Bd3 {[%clk 0:00:01.8]} 36... Bxd3 {[%clk 0:00:29.7]} 0-1

[Event "*** SCC Grand Prix: Titled Tuesday Blitz"]
[Site "Chess.com"]
[Date "2020.06.23"]
[Round "6"]
[White "politeplayer"]
[Black "SHIVACalypso"]
[Result "0-1"]
[WhiteElo "2166"]
[BlackElo "2349"]
[TimeControl "180+1"]
[EndTime "11:06:17 PDT"]
[Termination "SHIVACalypso won by resignation"]

1. e4 {[%clk 0:03:00.9]} 1... e6 {[%clk 0:02:58.2]} 2. d3 {[%clk 0:02:59.9]}
2... d5 {[%clk 0:02:58.3]} 3. Nd2 {[%clk 0:02:59.9]} 3... Nf6 {[%clk 0:02:58.3]}
4. Ngf3 {[%clk 0:03:00.2]} 4... Be7 {[%clk 0:02:58.4]} 5. g3 {[%clk 0:03:00.6]}
5... O-O {[%clk 0:02:58.5]} 6. Bg2 {[%clk 0:03:01.2]} 6... c5 {[%clk 0:02:59]}
7. O-O {[%clk 0:03:01.4]} 7... Nc6 {[%clk 0:02:59.5]} 8. Re1 {[%clk 0:03:00.6]}
8... b5 {[%clk 0:02:58.6]} 9. e5 {[%clk 0:03:00]} 9... Nd7 {[%clk 0:02:58.1]}
10. Nf1 {[%clk 0:03:00.3]} 10... Bb7 {[%clk 0:02:56.6]} 11. h4 {[%clk
0:02:59.6]} 11... Qc7 {[%clk 0:02:55.8]} 12. Bf4 {[%clk 0:02:58.7]} 12... Rfc8
{[%clk 0:02:55.7]} 13. N1h2 {[%clk 0:02:57.2]} 13... Qd8 {[%clk 0:02:52.9]} 14.
Ng5 {[%clk 0:02:52]} 14... h6 {[%clk 0:02:50.7]} 15. Qh5 {[%clk 0:02:49.4]}
15... hxg5 {[%clk 0:02:47.8]} 16. hxg5 {[%clk 0:02:48.5]} 16... Nd4 {[%clk
0:01:54.8]} 17. Ng4 {[%clk 0:02:41.4]} 17... Nxc2 {[%clk 0:01:36.7]} 18. Kh2
{[%clk 0:02:16.7]} 18... Nxe1 {[%clk 0:01:27.5]} 19. Rxe1 {[%clk 0:02:16.6]}
19... Nf8 {[%clk 0:00:45.7]} 20. Nf6+ {[%clk 0:01:55.7]} 20... Bxf6 {[%clk
0:00:42.1]} 21. exf6 {[%clk 0:01:49.1]} 21... Ng6 {[%clk 0:00:37.8]} 22. Rh1
{[%clk 0:01:10.6]} 22... gxf6 {[%clk 0:00:24.1]} 23. Kg1 {[%clk 0:01:05.2]}
23... e5 {[%clk 0:00:17.5]} 24. Bd2 {[%clk 0:00:27.1]} 24... Kf8 {[%clk
0:00:16.4]} 25. gxf6 {[%clk 0:00:23.8]} 25... Qxf6 {[%clk 0:00:17.3]} 26. Bg5
{[%clk 0:00:22.5]} 26... Qe6 {[%clk 0:00:15.4]} 27. Qh6+ {[%clk 0:00:22]} 27...
Ke8 {[%clk 0:00:15.4]} 28. Bh3 {[%clk 0:00:22]} 28... f5 {[%clk 0:00:09.6]} 29.
Qg7 {[%clk 0:00:18.5]} 29... Qf7 {[%clk 0:00:09.1]} 30. Qh6 {[%clk 0:00:15.6]}
30... Rc6 {[%clk 0:00:09.4]} 31. Kh2 {[%clk 0:00:13.3]} 31... Kd7 {[%clk
0:00:09.8]} 32. Re1 {[%clk 0:00:12.5]} 32... Rh8 {[%clk 0:00:10.1]} 33. Bxf5+
{[%clk 0:00:08.6]} 33... Qxf5 {[%clk 0:00:09.3]} 34. Qxh8 {[%clk 0:00:07.5]}
34... Nxh8 {[%clk 0:00:09.3]} 0-1

[Event "*** SCC Grand Prix: Titled Tuesday Blitz"]
[Site "Chess.com"]
[Date "2020.06.23"]
[Round "6"]
[White "GeorgMeier"]
[Black "LuckIsMySkill"]
[Result "1-0"]
[WhiteElo "2908"]
[BlackElo "2716"]
[TimeControl "180+1"]
[EndTime "11:06:20 PDT"]
[Termination "GeorgMeier won on time"]

1. Nf3 {[%clk 0:02:53.7]} 1... c5 {[%clk 0:02:58.3]} 2. e4 {[%clk 0:02:53.2]}
2... d6 {[%clk 0:02:56.8]} 3. Bb5+ {[%clk 0:02:53.5]} 3... Bd7 {[%clk 0:02:56]}
4. Bxd7+ {[%clk 0:02:54]} 4... Qxd7 {[%clk 0:02:55.9]} 5. c4 {[%clk 0:02:54.3]}
5... g6 {[%clk 0:02:51.1]} 6. d4 {[%clk 0:02:54.3]} 6... Bg7 {[%clk 0:02:49.9]}
7. d5 {[%clk 0:02:53.1]} 7... b5 {[%clk 0:02:48.7]} 8. O-O {[%clk 0:02:46.7]}
8... bxc4 {[%clk 0:02:41.1]} 9. Na3 {[%clk 0:02:46.3]} 9... c3 {[%clk
0:02:40.3]} 10. bxc3 {[%clk 0:02:45.4]} 10... Bxc3 {[%clk 0:02:35.6]} 11. Rb1
{[%clk 0:02:45.6]} 11... Nf6 {[%clk 0:02:36.1]} 12. Nc4 {[%clk 0:02:30.7]} 12...
O-O {[%clk 0:02:27]} 13. Qd3 {[%clk 0:02:25.5]} 13... Bd4 {[%clk 0:02:23.1]} 14.
Nxd4 {[%clk 0:02:25.3]} 14... cxd4 {[%clk 0:02:23.2]} 15. Qxd4 {[%clk
0:02:01.5]} 15... Na6 {[%clk 0:02:12.3]} 16. Na5 {[%clk 0:01:57.6]} 16... Nc5
{[%clk 0:01:59.8]} 17. f3 {[%clk 0:01:56.2]} 17... Qc7 {[%clk 0:01:13.5]} 18.
Nc6 {[%clk 0:01:50]} 18... e5 {[%clk 0:01:12.9]} 19. Qc4 {[%clk 0:01:42.6]}
19... Nfd7 {[%clk 0:00:59.1]} 20. Bh6 {[%clk 0:01:30]} 20... Rfe8 {[%clk
0:00:53.1]} 21. Be3 {[%clk 0:01:26]} 21... Kg7 {[%clk 0:00:51.9]} 22. Qc2 {[%clk
0:01:19.2]} 22... Rac8 {[%clk 0:00:38.1]} 23. Rfc1 {[%clk 0:01:15.2]} 23... a5
{[%clk 0:00:23.6]} 24. a4 {[%clk 0:01:06.6]} 24... Na6 {[%clk 0:00:17.6]} 25.
Qd2 {[%clk 0:00:57.5]} 25... Nac5 {[%clk 0:00:12.7]} 26. Qd1 {[%clk 0:00:49.1]}
26... Ra8 {[%clk 0:00:10.9]} 27. Rb5 {[%clk 0:00:48.3]} 27... Ra6 {[%clk
0:00:10.6]} 28. Rcb1 {[%clk 0:00:43.9]} 28... Rb6 {[%clk 0:00:04.8]} 29. Rxb6
{[%clk 0:00:36.5]} 29... Nxb6 {[%clk 0:00:05.7]} 30. Bxc5 {[%clk 0:00:35.6]}
30... dxc5 {[%clk 0:00:06.6]} 31. Rb5 {[%clk 0:00:33.5]} 31... Nc4 {[%clk
0:00:05.4]} 32. Qb3 {[%clk 0:00:21.4]} 32... Nd6 {[%clk 0:00:05.2]} 33. Rxc5
{[%clk 0:00:21.5]} 33... Rc8 {[%clk 0:00:03.4]} 34. h3 {[%clk 0:00:19.3]} 34...
Qd7 {[%clk 0:00:02]} 35. Kh1 {[%clk 0:00:17.3]} 35... f5 {[%clk 0:00:01]} 36.
Nxe5 {[%clk 0:00:17.2]} 1-0